[Event "Early-Titled-Tuesday-Blitz-March-26-2024"]
[Site "Chess.com"]
[Date "2024.03.26"]
[Round "6"]
[White "HansOnTwitch"]
[Black "frederiksvane"]
[Result "1/2-1/2"]
[WhiteElo "3117"]
[BlackElo "2987"]
[TimeControl "180+1"]
[EndTime "9:05:59 PDT"]
[Termination "Game drawn by stalemate"]

1. d4 {[%clk 0:03:00.9]} 1... Nf6 {[%clk 0:03:00.4]} 2. c4 {[%clk 0:03:00.4]}
2... e6 {[%clk 0:03:00.5]} 3. Nf3 {[%clk 0:03:01.2]} 3... d5 {[%clk 0:02:58.4]}
4. Nc3 {[%clk 0:03:00.8]} 4... Nbd7 {[%clk 0:02:55.6]} 5. cxd5 {[%clk
0:02:56.9]} 5... exd5 {[%clk 0:02:55.3]} 6. h3 {[%clk 0:02:56.5]} 6... Bd6
{[%clk 0:02:40.9]} 7. Bg5 {[%clk 0:02:55.8]} 7... c6 {[%clk 0:02:41.2]} 8. e3
{[%clk 0:02:55.4]} 8... O-O {[%clk 0:02:40.8]} 9. Bd3 {[%clk 0:02:55.6]} 9...
Re8 {[%clk 0:02:41.3]} 10. O-O {[%clk 0:02:53.2]} 10... Nf8 {[%clk 0:02:41.3]}
11. Qc2 {[%clk 0:02:50.7]} 11... Ng6 {[%clk 0:02:21]} 12. Rae1 {[%clk
0:02:28.9]} 12... h6 {[%clk 0:02:04.6]} 13. Bxh6 {[%clk 0:01:52.6]} 13... gxh6
{[%clk 0:01:53.3]} 14. Bxg6 {[%clk 0:01:52]} 14... fxg6 {[%clk 0:01:53.9]} 15.
Qxg6+ {[%clk 0:01:52.3]} 15... Kh8 {[%clk 0:01:54.7]} 16. e4 {[%clk 0:01:51]}
16... Nh7 {[%clk 0:01:13.9]} 17. exd5 {[%clk 0:01:42.3]} 17... Rg8 {[%clk
0:01:00.1]} 18. Qxh6 {[%clk 0:01:41.9]} 18... Bf5 {[%clk 0:00:51]} 19. Ne5
{[%clk 0:01:37]} 19... Rg7 {[%clk 0:00:25.3]} 20. dxc6 {[%clk 0:01:31.6]} 20...
bxc6 {[%clk 0:00:25.7]} 21. Re3 {[%clk 0:01:16.6]} 21... Qf8 {[%clk 0:00:23.3]}
22. Rg3 {[%clk 0:01:02.6]} 22... Rxg3 {[%clk 0:00:10.8]} 23. Qxf8+ {[%clk
0:01:02.5]} 23... Rxf8 {[%clk 0:00:11.5]} 24. fxg3 {[%clk 0:01:03.2]} 24... c5
{[%clk 0:00:12.3]} 25. Nb5 {[%clk 0:00:48.4]} 25... Be7 {[%clk 0:00:02.5]} 26.
Rxf5 {[%clk 0:00:35.4]} 26... Rxf5 {[%clk 0:00:02.6]} 27. Ng6+ {[%clk
0:00:36.1]} 27... Kg7 {[%clk 0:00:03.1]} 28. Nxe7 {[%clk 0:00:37]} 28... Rf7
{[%clk 0:00:02.5]} 29. Nc6 {[%clk 0:00:37.4]} 29... Rb7 {[%clk 0:00:02.1]} 30.
a4 {[%clk 0:00:31.1]} 30... cxd4 {[%clk 0:00:01.2]} 31. Nbxd4 {[%clk 0:00:13.4]}
31... Rxb2 {[%clk 0:00:01.4]} 32. Nxa7 {[%clk 0:00:12.7]} 32... Ra2 {[%clk
0:00:02]} 33. Nac6 {[%clk 0:00:11.9]} 33... Rxa4 {[%clk 0:00:02.5]} 34. Nf3
{[%clk 0:00:12.1]} 34... Nf6 {[%clk 0:00:02.9]} 35. g4 {[%clk 0:00:12.1]} 35...
Ne4 {[%clk 0:00:03.2]} 36. Kh2 {[%clk 0:00:11.5]} 36... Ra2 {[%clk 0:00:03.7]}
37. Ncd4 {[%clk 0:00:11.9]} 37... Nf2 {[%clk 0:00:04]} 38. Nf5+ {[%clk
0:00:11.1]} 38... Kf6 {[%clk 0:00:04.6]} 39. Ne3 {[%clk 0:00:10.3]} 39... Ne4
{[%clk 0:00:05]} 40. h4 {[%clk 0:00:10.2]} 40... Re2 {[%clk 0:00:04.4]} 41. Nd5+
{[%clk 0:00:10.4]} 41... Kf7 {[%clk 0:00:05]} 42. Nf4 {[%clk 0:00:11.3]} 42...
Ra2 {[%clk 0:00:05.1]} 43. g5 {[%clk 0:00:11.9]} 43... Kg7 {[%clk 0:00:04.6]}
44. Kh3 {[%clk 0:00:11.4]} 44... Ra1 {[%clk 0:00:04.4]} 45. Kg4 {[%clk
0:00:11.5]} 45... Nf2+ {[%clk 0:00:04.7]} 46. Kf5 {[%clk 0:00:10.7]} 46... Ra5+
{[%clk 0:00:05.1]} 47. Ne5 {[%clk 0:00:11.5]} 47... Ng4 {[%clk 0:00:02.3]} 48.
Nh5+ {[%clk 0:00:08.1]} 48... Kf8 {[%clk 0:00:01.9]} 49. Kxg4 {[%clk 0:00:08.6]}
49... Rxe5 {[%clk 0:00:02.3]} 50. Nf4 {[%clk 0:00:08.9]} 50... Kg7 {[%clk
0:00:02.3]} 51. h5 {[%clk 0:00:09.6]} 51... Re1 {[%clk 0:00:02.3]} 52. h6+
{[%clk 0:00:09.4]} 52... Kh7 {[%clk 0:00:02]} 53. Kh5 {[%clk 0:00:10.1]} 53...
Rh1+ {[%clk 0:00:02.4]} 54. Nh3 {[%clk 0:00:10.3]} 54... Rh2 {[%clk 0:00:02.2]}
55. g6+ {[%clk 0:00:10.5]} 55... Kg8 {[%clk 0:00:02.8]} 56. Kg4 {[%clk
0:00:02.4]} 56... Rxg2+ {[%clk 0:00:03]} 57. Kf5 {[%clk 0:00:03.1]} 57... Ra2
{[%clk 0:00:03.4]} 58. Nf4 {[%clk 0:00:02.4]} 58... Ra5+ {[%clk 0:00:03.6]} 59.
Kf6 {[%clk 0:00:03]} 59... Ra1 {[%clk 0:00:03.9]} 60. Ne6 {[%clk 0:00:03.4]}
60... Rf1+ {[%clk 0:00:04.1]} 61. Ke7 {[%clk 0:00:03.3]} 61... Re1 {[%clk
0:00:04.5]} 62. h7+ {[%clk 0:00:02.8]} 62... Kh8 {[%clk 0:00:04.7]} 63. Kf6
{[%clk 0:00:03.3]} 63... Rf1+ {[%clk 0:00:05]} 64. Ke5 {[%clk 0:00:03.7]} 64...
Rg1 {[%clk 0:00:05.4]} 65. Kf5 {[%clk 0:00:02.7]} 65... Rxg6 {[%clk 0:00:05.8]}
66. Kxg6 {[%clk 0:00:03.1]} 1/2-1/2

[Event "Early-Titled-Tuesday-Blitz-March-26-2024"]
[Site "Chess.com"]
[Date "2024.03.26"]
[Round "6"]
[White "SAInt_666"]
[Black "Nf3c5"]
[Result "1-0"]
[WhiteElo "2739"]
[BlackElo "2543"]
[TimeControl "180+1"]
[EndTime "9:05:59 PDT"]
[Termination "SAInt_666 won by checkmate"]

1. d4 {[%clk 0:03:00.9]} 1... d5 {[%clk 0:02:57.4]} 2. Nf3 {[%clk 0:02:57.6]}
2... Nf6 {[%clk 0:02:51.5]} 3. c4 {[%clk 0:02:57.4]} 3... e6 {[%clk 0:02:49.8]}
4. Nc3 {[%clk 0:02:58]} 4... Be7 {[%clk 0:02:49.5]} 5. Bf4 {[%clk 0:02:55.2]}
5... O-O {[%clk 0:02:48.7]} 6. e3 {[%clk 0:02:55.7]} 6... c5 {[%clk 0:02:46.8]}
7. dxc5 {[%clk 0:02:53.5]} 7... Na6 {[%clk 0:02:43.9]} 8. cxd5 {[%clk
0:02:49.3]} 8... Nxd5 {[%clk 0:02:27.7]} 9. Nxd5 {[%clk 0:02:46.4]} 9... exd5
{[%clk 0:02:26.4]} 10. Bxa6 {[%clk 0:02:37.5]} 10... Qa5+ {[%clk 0:02:22.7]} 11.
Qd2 {[%clk 0:02:38.1]} 11... Qxa6 {[%clk 0:02:22.8]} 12. Bd6 {[%clk 0:02:32]}
12... Bxd6 {[%clk 0:02:14.9]} 13. cxd6 {[%clk 0:02:32.9]} 13... Bg4 {[%clk
0:02:10]} 14. Nd4 {[%clk 0:02:29.7]} 14... Rfd8 {[%clk 0:01:59.3]} 15. f3 {[%clk
0:02:29.5]} 15... Bh5 {[%clk 0:01:49.2]} 16. Kf2 {[%clk 0:02:29.3]} 16... Rxd6
{[%clk 0:01:49]} 17. Rhc1 {[%clk 0:02:27]} 17... Bg6 {[%clk 0:01:48.1]} 18. Rc7
{[%clk 0:02:21.2]} 18... Re8 {[%clk 0:01:46.8]} 19. a3 {[%clk 0:02:15.6]} 19...
h5 {[%clk 0:01:47]} 20. Rac1 {[%clk 0:02:13.2]} 20... Rdd8 {[%clk 0:01:39.7]}
21. R1c3 {[%clk 0:01:53.9]} 21... Qd6 {[%clk 0:01:02.9]} 22. g3 {[%clk
0:01:52.5]} 22... Rb8 {[%clk 0:01:03.2]} 23. Nb5 {[%clk 0:01:44.4]} 23... Qb6
{[%clk 0:01:02.3]} 24. Nd4 {[%clk 0:01:44.8]} 24... Qd6 {[%clk 0:01:01.8]} 25.
Qc1 {[%clk 0:01:35.7]} 25... a6 {[%clk 0:01:00]} 26. Qf1 {[%clk 0:01:30.4]}
26... Qb6 {[%clk 0:00:46]} 27. b4 {[%clk 0:01:30.2]} 27... Qf6 {[%clk
0:00:42.9]} 28. Qh3 {[%clk 0:01:24.9]} 28... Qe5 {[%clk 0:00:38]} 29. Qh4 {[%clk
0:01:21.1]} 29... Qd6 {[%clk 0:00:36.7]} 30. Qf4 {[%clk 0:01:18]} 30... Qb6
{[%clk 0:00:34.5]} 31. R3c5 {[%clk 0:01:01.2]} 31... a5 {[%clk 0:00:30.4]} 32.
Rxa5 {[%clk 0:00:58.4]} 32... Ra8 {[%clk 0:00:26.8]} 33. Rxa8 {[%clk 0:00:54.4]}
33... Rxa8 {[%clk 0:00:27.7]} 34. Rc3 {[%clk 0:00:55]} 34... Qa6 {[%clk
0:00:20.5]} 35. Qc7 {[%clk 0:00:52.8]} 35... Qa4 {[%clk 0:00:18]} 36. Qxb7
{[%clk 0:00:49.2]} 36... Rd8 {[%clk 0:00:18.5]} 37. Qc7 {[%clk 0:00:41]} 37...
Rf8 {[%clk 0:00:17.4]} 38. Qc5 {[%clk 0:00:14.2]} 38... Qd1 {[%clk 0:00:17.8]}
39. Ne2 {[%clk 0:00:14.4]} 39... Qh1 {[%clk 0:00:16.5]} 40. h4 {[%clk
0:00:13.1]} 40... Qh2+ {[%clk 0:00:16.1]} 41. Ke1 {[%clk 0:00:13.4]} 41... Qh1+
{[%clk 0:00:16.6]} 42. Kd2 {[%clk 0:00:14]} 42... Qxf3 {[%clk 0:00:17.3]} 43. b5
{[%clk 0:00:10.3]} 43... Bf5 {[%clk 0:00:17.2]} 44. b6 {[%clk 0:00:06.6]} 44...
Bg4 {[%clk 0:00:17]} 45. Qb5 {[%clk 0:00:07.3]} 45... d4 {[%clk 0:00:14.3]} 46.
exd4 {[%clk 0:00:04.6]} 46... Qf2 {[%clk 0:00:14]} 47. Re3 {[%clk 0:00:02.9]}
47... Rd8 {[%clk 0:00:13]} 48. Re8+ {[%clk 0:00:03]} 48... Rxe8 {[%clk
0:00:13.4]} 49. Qxe8+ {[%clk 0:00:03.8]} 49... Kh7 {[%clk 0:00:14.3]} 50. Qe3
{[%clk 0:00:04.7]} 50... Qf1 {[%clk 0:00:13.8]} 51. Qd3+ {[%clk 0:00:03.1]}
51... f5 {[%clk 0:00:13.8]} 52. b7 {[%clk 0:00:03.6]} 52... Bxe2 {[%clk
0:00:09.6]} 53. Qxe2 {[%clk 0:00:03.8]} 53... Qb1 {[%clk 0:00:10.2]} 54. Qxh5+
{[%clk 0:00:04.5]} 54... Kg8 {[%clk 0:00:09.9]} 55. Qe8+ {[%clk 0:00:05.2]}
55... Kh7 {[%clk 0:00:10.8]} 56. b8=Q {[%clk 0:00:04.6]} 56... Qa2+ {[%clk
0:00:11.1]} 57. Ke3 {[%clk 0:00:04.9]} 57... Qxa3+ {[%clk 0:00:09.4]} 58. Kf4
{[%clk 0:00:05.4]} 58... Qd3 {[%clk 0:00:08.4]} 59. Qh5# {[%clk 0:00:04.9]} 1-0

[Event "Early-Titled-Tuesday-Blitz-March-26-2024"]
[Site "Chess.com"]
[Date "2024.03.26"]
[Round "6"]
[White "ChessQueen"]
[Black "Midgardsormur"]
[Result "0-1"]
[WhiteElo "2717"]
[BlackElo "2459"]
[TimeControl "180+1"]
[EndTime "9:06:00 PDT"]
[Termination "Midgardsormur won by resignation"]

1. Nf3 {[%clk 0:02:57.5]} 1... Nf6 {[%clk 0:02:57.4]} 2. g3 {[%clk 0:02:57.8]}
2... c5 {[%clk 0:02:57.1]} 3. Bg2 {[%clk 0:02:58.7]} 3... Nc6 {[%clk 0:02:57.4]}
4. O-O {[%clk 0:02:58.6]} 4... e5 {[%clk 0:02:57.3]} 5. d3 {[%clk 0:02:58]} 5...
d5 {[%clk 0:02:57.1]} 6. e4 {[%clk 0:02:54.9]} 6... dxe4 {[%clk 0:02:53.6]} 7.
dxe4 {[%clk 0:02:54.4]} 7... Qxd1 {[%clk 0:02:53.1]} 8. Rxd1 {[%clk 0:02:54.4]}
8... Nxe4 {[%clk 0:02:13]} 9. Nxe5 {[%clk 0:02:34.7]} 9... Nxe5 {[%clk
0:02:12.4]} 10. Bxe4 {[%clk 0:02:34.5]} 10... Bg4 {[%clk 0:01:58.2]} 11. Rd5
{[%clk 0:02:18.2]} 11... f6 {[%clk 0:01:39.8]} 12. f4 {[%clk 0:02:11.6]} 12...
Nf3+ {[%clk 0:01:31.4]} 13. Kf2 {[%clk 0:01:52.5]} 13... Nd4 {[%clk 0:01:28.2]}
14. f5 {[%clk 0:01:47.4]} 14... Rd8 {[%clk 0:01:20.9]} 15. Na3 {[%clk 0:01:28]}
15... Rxd5 {[%clk 0:01:08]} 16. Bxd5 {[%clk 0:01:28.9]} 16... b6 {[%clk
0:01:08.3]} 17. c3 {[%clk 0:01:28.2]} 17... Nxf5 {[%clk 0:01:06.1]} 18. Bf4
{[%clk 0:01:26.3]} 18... Bd6 {[%clk 0:01:03.8]} 19. Re1+ {[%clk 0:01:24.7]}
19... Kd8 {[%clk 0:01:01.2]} 20. Be6 {[%clk 0:01:15.7]} 20... Bxf4 {[%clk
0:00:56.4]} 21. gxf4 {[%clk 0:01:16.6]} 21... Nh6 {[%clk 0:00:55.3]} 22. Nb5
{[%clk 0:01:13.9]} 22... Bxe6 {[%clk 0:00:39.2]} 23. Rxe6 {[%clk 0:01:14.8]}
23... Kd7 {[%clk 0:00:39.8]} 24. Rd6+ {[%clk 0:01:13.9]} 24... Ke7 {[%clk
0:00:39.9]} 25. Rc6 {[%clk 0:01:14.1]} 25... Rd8 {[%clk 0:00:33.5]} 26. Rc7+
{[%clk 0:01:13.4]} 26... Rd7 {[%clk 0:00:32.6]} 27. Rxd7+ {[%clk 0:01:12.7]}
27... Kxd7 {[%clk 0:00:32.9]} 28. Nxa7 {[%clk 0:01:13.5]} 28... Ng4+ {[%clk
0:00:31.1]} 29. Kg3 {[%clk 0:01:12]} 29... Ne3 {[%clk 0:00:31.4]} 30. Nb5 {[%clk
0:01:10.1]} 30... Kc6 {[%clk 0:00:26.9]} 31. a4 {[%clk 0:01:10.2]} 31... Nd1
{[%clk 0:00:19.2]} 32. b3 {[%clk 0:01:09.4]} 32... Nb2 {[%clk 0:00:16]} 33. Kf3
{[%clk 0:00:31.1]} 33... c4 {[%clk 0:00:15.9]} 34. bxc4 {[%clk 0:00:31.5]} 34...
Nxc4 {[%clk 0:00:12.5]} 35. Nd4+ {[%clk 0:00:31.7]} 35... Kd5 {[%clk 0:00:12.8]}
36. Nf5 {[%clk 0:00:31.6]} 36... g6 {[%clk 0:00:13.3]} 37. Ne7+ {[%clk
0:00:31.9]} 37... Kd6 {[%clk 0:00:10.7]} 38. Nc8+ {[%clk 0:00:21.6]} 38... Kc5
{[%clk 0:00:10.8]} 39. Ke4 {[%clk 0:00:18.9]} 39... Nb2 {[%clk 0:00:11.1]} 40.
Ne7 {[%clk 0:00:18.7]} 40... Nxa4 {[%clk 0:00:10.8]} 41. Kd3 {[%clk 0:00:19.2]}
41... Nb2+ {[%clk 0:00:10.3]} 42. Kc2 {[%clk 0:00:17.2]} 42... Nc4 {[%clk
0:00:11.2]} 43. Ng8 {[%clk 0:00:17.5]} 43... f5 {[%clk 0:00:09.6]} 44. Nf6
{[%clk 0:00:17.7]} 44... h6 {[%clk 0:00:09.9]} 45. Ng8 {[%clk 0:00:17.3]} 45...
Ne3+ {[%clk 0:00:08.2]} 46. Kd2 {[%clk 0:00:16.6]} 46... Ng2 {[%clk 0:00:08.4]}
47. Nxh6 {[%clk 0:00:16.7]} 47... Nxf4 {[%clk 0:00:08.6]} 48. Nf7 {[%clk
0:00:17.5]} 48... Ne6 {[%clk 0:00:08.4]} 49. Ne5 {[%clk 0:00:17.5]} 49... g5
{[%clk 0:00:08.4]} 50. Nd7+ {[%clk 0:00:16.1]} 50... Kc6 {[%clk 0:00:08.7]} 51.
Ne5+ {[%clk 0:00:16.2]} 51... Kd5 {[%clk 0:00:09.2]} 52. Nd7 {[%clk 0:00:16.6]}
52... b5 {[%clk 0:00:09.8]} 53. Nf6+ {[%clk 0:00:16]} 53... Ke5 {[%clk
0:00:09.9]} 54. Nd7+ {[%clk 0:00:16.3]} 54... Kf4 {[%clk 0:00:10.2]} 55. Nb6
{[%clk 0:00:12.4]} 55... Nc7 {[%clk 0:00:08.8]} 56. Ke2 {[%clk 0:00:11.8]} 56...
Kg4 {[%clk 0:00:08.8]} 57. Kf2 {[%clk 0:00:11.2]} 57... Kh3 {[%clk 0:00:08.9]}
58. Kg1 {[%clk 0:00:11.8]} 58... g4 {[%clk 0:00:09.4]} 59. Nd7 {[%clk 0:00:11]}
59... g3 {[%clk 0:00:09.5]} 60. hxg3 {[%clk 0:00:10.8]} 60... Kxg3 {[%clk
0:00:10.4]} 61. Nf6 {[%clk 0:00:11]} 61... Kf3 {[%clk 0:00:10.6]} 62. Kf1 {[%clk
0:00:10.4]} 62... Ke3 {[%clk 0:00:11.1]} 63. Ng8 {[%clk 0:00:09.1]} 63... Kd3
{[%clk 0:00:11]} 64. Ne7 {[%clk 0:00:09.2]} 64... f4 {[%clk 0:00:11.1]} 65. Kf2
{[%clk 0:00:09.3]} 65... Kxc3 {[%clk 0:00:10.8]} 66. Nc6 {[%clk 0:00:09.6]}
66... b4 {[%clk 0:00:09.6]} 67. Na5 {[%clk 0:00:05.6]} 67... b3 {[%clk
0:00:09.2]} 0-1

[Event "Early-Titled-Tuesday-Blitz-March-26-2024"]
[Site "Chess.com"]
[Date "2024.03.26"]
[Round "6"]
[White "Navyblue1"]
[Black "LileKoridze"]
[Result "0-1"]
[WhiteElo "2240"]
[BlackElo "2447"]
[TimeControl "180+1"]
[EndTime "9:06:00 PDT"]
[Termination "LileKoridze won on time"]

1. d4 {[%clk 0:03:00.9]} 1... Nf6 {[%clk 0:02:59.5]} 2. c4 {[%clk 0:03:01.5]}
2... e6 {[%clk 0:02:59.9]} 3. Nf3 {[%clk 0:03:00]} 3... d5 {[%clk 0:02:59.7]} 4.
Nc3 {[%clk 0:02:57.8]} 4... c6 {[%clk 0:02:59.7]} 5. cxd5 {[%clk 0:02:57]} 5...
exd5 {[%clk 0:02:59.8]} 6. Bg5 {[%clk 0:02:55.6]} 6... Be7 {[%clk 0:02:59.7]} 7.
Qc2 {[%clk 0:02:55.1]} 7... h6 {[%clk 0:02:59.2]} 8. Bh4 {[%clk 0:02:54.5]} 8...
O-O {[%clk 0:02:59]} 9. e3 {[%clk 0:02:54.5]} 9... Ne4 {[%clk 0:02:32.9]} 10.
Bxe7 {[%clk 0:02:51.2]} 10... Qxe7 {[%clk 0:02:32.6]} 11. Bd3 {[%clk 0:02:43.6]}
11... f5 {[%clk 0:02:30.7]} 12. O-O {[%clk 0:02:39]} 12... Nd7 {[%clk
0:02:30.2]} 13. Nd2 {[%clk 0:02:15.4]} 13... Ndf6 {[%clk 0:02:26.9]} 14. Rae1
{[%clk 0:02:14.6]} 14... Nxc3 {[%clk 0:02:23.8]} 15. bxc3 {[%clk 0:02:12]} 15...
Ne4 {[%clk 0:02:23.5]} 16. f3 {[%clk 0:01:55.2]} 16... Nd6 {[%clk 0:02:20.4]}
17. c4 {[%clk 0:01:53.4]} 17... dxc4 {[%clk 0:02:14.9]} 18. Nxc4 {[%clk
0:01:51.4]} 18... Kh8 {[%clk 0:02:11.1]} 19. Ne5 {[%clk 0:01:45.6]} 19... Qf6
{[%clk 0:02:06]} 20. Rb1 {[%clk 0:01:39.7]} 20... Be6 {[%clk 0:02:04.1]} 21. a4
{[%clk 0:01:33.2]} 21... Qg5 {[%clk 0:02:03]} 22. Qf2 {[%clk 0:01:20]} 22... Bd5
{[%clk 0:01:58.6]} 23. Qe2 {[%clk 0:00:50.7]} 23... Rae8 {[%clk 0:01:52.3]} 24.
a5 {[%clk 0:00:44.1]} 24... c5 {[%clk 0:01:31.3]} 25. f4 {[%clk 0:00:40.9]}
25... Qf6 {[%clk 0:01:22.6]} 26. Nd7 {[%clk 0:00:34.5]} 26... Qf7 {[%clk
0:01:22.3]} 27. Nxf8 {[%clk 0:00:34.4]} 27... cxd4 {[%clk 0:01:20.7]} 28. Rfe1
{[%clk 0:00:15.9]} 28... Qxf8 {[%clk 0:01:16.6]} 29. Qd2 {[%clk 0:00:15]} 29...
dxe3 {[%clk 0:01:06.9]} 30. Rxe3 {[%clk 0:00:14.5]} 30... Ne4 {[%clk 0:01:07.2]}
31. Bxe4 {[%clk 0:00:14.4]} 31... Bxe4 {[%clk 0:01:07.2]} 32. Rbe1 {[%clk
0:00:14.9]} 32... Qc5 {[%clk 0:01:05.9]} 33. h3 {[%clk 0:00:14.7]} 33... Qc7
{[%clk 0:01:01.3]} 34. Qf2 {[%clk 0:00:13.9]} 34... Qxa5 {[%clk 0:01:00.8]} 35.
g4 {[%clk 0:00:13]} 35... Rf8 {[%clk 0:00:55.7]} 36. Qh4 {[%clk 0:00:13.1]}
36... Qd2 {[%clk 0:00:50.6]} 37. Qf2 {[%clk 0:00:13.2]} 37... Qd6 {[%clk
0:00:48.7]} 38. gxf5 {[%clk 0:00:13.3]} 38... Bxf5 {[%clk 0:00:48.5]} 39. Kh2
{[%clk 0:00:13.3]} 39... b5 {[%clk 0:00:46.8]} 40. Qg3 {[%clk 0:00:13]} 40... b4
{[%clk 0:00:44.7]} 41. Re7 {[%clk 0:00:13]} 41... Rg8 {[%clk 0:00:42.2]} 42.
R7e5 {[%clk 0:00:11.8]} 42... Bh7 {[%clk 0:00:37.7]} 43. f5 {[%clk 0:00:11.7]}
43... Qf6 {[%clk 0:00:29.9]} 44. Rb5 {[%clk 0:00:10.1]} 44... Qf8 {[%clk
0:00:17.3]} 45. Qe5 {[%clk 0:00:08.5]} 45... a6 {[%clk 0:00:13.1]} 46. Rb6
{[%clk 0:00:06.9]} 46... Qc8 {[%clk 0:00:10.4]} 47. Re2 {[%clk 0:00:05.1]} 47...
Qxf5 {[%clk 0:00:07.1]} 48. Qxf5 {[%clk 0:00:04.7]} 48... Bxf5 {[%clk 0:00:08]}
49. Rxb4 {[%clk 0:00:04.5]} 49... Bd3 {[%clk 0:00:07.8]} 50. Re3 {[%clk
0:00:04.2]} 50... Bb5 {[%clk 0:00:08]} 51. Ra3 {[%clk 0:00:04.1]} 51... Rc8
{[%clk 0:00:07.4]} 52. Kg3 {[%clk 0:00:04]} 52... Rc2 {[%clk 0:00:07.4]} 53. h4
{[%clk 0:00:04.3]} 53... Kh7 {[%clk 0:00:07.3]} 54. Kf4 {[%clk 0:00:03.7]} 54...
Rc5 {[%clk 0:00:07.4]} 55. Kg3 {[%clk 0:00:03.6]} 55... Rc1 {[%clk 0:00:06.3]}
56. Kf4 {[%clk 0:00:03.5]} 56... Rh1 {[%clk 0:00:06.6]} 57. Kg3 {[%clk
0:00:03.4]} 57... Rg1+ {[%clk 0:00:06.9]} 58. Kf4 {[%clk 0:00:03.6]} 58... h5
{[%clk 0:00:05.7]} 59. Ke5 {[%clk 0:00:03.5]} 59... Re1+ {[%clk 0:00:05.3]} 60.
Kf4 {[%clk 0:00:03.4]} 60... Rg1 {[%clk 0:00:05.4]} 61. Ke5 {[%clk 0:00:02.4]}
61... Rg6 {[%clk 0:00:05.1]} 62. Kf4 {[%clk 0:00:02.3]} 62... Rf6+ {[%clk
0:00:05.2]} 63. Ke5 {[%clk 0:00:01.2]} 63... Rf1 {[%clk 0:00:05.1]} 0-1

[Event "Early-Titled-Tuesday-Blitz-March-26-2024"]
[Site "Chess.com"]
[Date "2024.03.26"]
[Round "6"]
[White "agvania123"]
[Black "Boundless_Strike"]
[Result "0-1"]
[WhiteElo "2413"]
[BlackElo "2618"]
[TimeControl "180+1"]
[EndTime "9:06:03 PDT"]
[Termination "Boundless_Strike won by resignation"]

1. e4 {[%clk 0:03:00.9]} 1... d6 {[%clk 0:02:55.9]} 2. d4 {[%clk 0:02:59.2]}
2... e5 {[%clk 0:02:56.2]} 3. Nc3 {[%clk 0:02:57.1]} 3... a6 {[%clk 0:02:55.3]}
4. Nf3 {[%clk 0:02:52.4]} 4... Bg4 {[%clk 0:02:55.2]} 5. dxe5 {[%clk 0:02:35]}
5... Nc6 {[%clk 0:02:55.2]} 6. exd6 {[%clk 0:02:32.5]} 6... Bxd6 {[%clk
0:02:56.1]} 7. Be2 {[%clk 0:02:28.8]} 7... Qe7 {[%clk 0:02:54.7]} 8. Be3 {[%clk
0:02:26.3]} 8... O-O-O {[%clk 0:02:54]} 9. Nd5 {[%clk 0:02:02.9]} 9... Qxe4
{[%clk 0:02:52.4]} 10. Ng5 {[%clk 0:02:02.9]} 10... Bxe2 {[%clk 0:01:42.3]} 11.
Nxe4 {[%clk 0:02:01.8]} 11... Bxd1 {[%clk 0:01:42.3]} 12. Rxd1 {[%clk
0:02:02.5]} 12... Nge7 {[%clk 0:01:33.5]} 13. Nxd6+ {[%clk 0:02:02.2]} 13...
Rxd6 {[%clk 0:01:33.4]} 14. Nxe7+ {[%clk 0:02:02.5]} 14... Nxe7 {[%clk
0:01:34.1]} 15. Rxd6 {[%clk 0:02:01.6]} 15... cxd6 {[%clk 0:01:35]} 16. f3
{[%clk 0:01:43.9]} 16... Nf5 {[%clk 0:01:32.2]} 17. Bf2 {[%clk 0:01:43.7]} 17...
Re8+ {[%clk 0:01:31.8]} 18. Kd2 {[%clk 0:01:44.1]} 18... Kd7 {[%clk 0:01:29.9]}
19. Re1 {[%clk 0:01:44.2]} 19... Rc8 {[%clk 0:01:30]} 20. Re4 {[%clk 0:01:29.3]}
20... f6 {[%clk 0:01:26.8]} 21. c3 {[%clk 0:01:23.1]} 21... d5 {[%clk
0:01:24.6]} 22. Rb4 {[%clk 0:01:06.6]} 22... Nd6 {[%clk 0:01:24.7]} 23. Bg3
{[%clk 0:01:02.5]} 23... Nc4+ {[%clk 0:01:24.9]} 24. Kd3 {[%clk 0:00:54.2]}
24... b5 {[%clk 0:01:25.2]} 25. b3 {[%clk 0:00:53.7]} 25... Na5 {[%clk
0:00:33.8]} 26. Rg4 {[%clk 0:00:20.4]} 26... g5 {[%clk 0:00:33.2]} 27. h4 {[%clk
0:00:18.7]} 27... h5 {[%clk 0:00:25.5]} 28. Rd4 {[%clk 0:00:18.9]} 28... Ke6
{[%clk 0:00:23.1]} 29. hxg5 {[%clk 0:00:18.8]} 29... fxg5 {[%clk 0:00:23.8]} 30.
Kc2 {[%clk 0:00:10.7]} 30... h4 {[%clk 0:00:17.2]} 31. Bh2 {[%clk 0:00:09.2]}
31... Nc6 {[%clk 0:00:17.9]} 32. Rd1 {[%clk 0:00:08.9]} 32... d4 {[%clk
0:00:17.4]} 33. Kb2 {[%clk 0:00:07.3]} 33... dxc3+ {[%clk 0:00:17.5]} 34. Kxc3
{[%clk 0:00:08.2]} 34... h3 {[%clk 0:00:17.6]} 35. gxh3 {[%clk 0:00:07.9]} 35...
Ne5+ {[%clk 0:00:17.9]} 36. Kb2 {[%clk 0:00:07.8]} 36... Nxf3 {[%clk 0:00:18.6]}
37. Bg3 {[%clk 0:00:06.8]} 37... Rh8 {[%clk 0:00:17.9]} 38. Rd3 {[%clk
0:00:06.7]} 38... Ng1 {[%clk 0:00:13.4]} 39. Bf2 {[%clk 0:00:05.4]} 39... Nxh3
{[%clk 0:00:13.4]} 40. Bd4 {[%clk 0:00:04.9]} 40... Rh7 {[%clk 0:00:12.8]} 41.
Re3+ {[%clk 0:00:05]} 41... Kd5 {[%clk 0:00:13]} 42. Bc3 {[%clk 0:00:05.6]}
42... g4 {[%clk 0:00:10.4]} 43. Re5+ {[%clk 0:00:06]} 43... Kd6 {[%clk 0:00:11]}
44. Re3 {[%clk 0:00:05.3]} 44... Rh5 {[%clk 0:00:09.6]} 45. Bb4+ {[%clk
0:00:05.5]} 45... Kd5 {[%clk 0:00:09.3]} 46. Bc3 {[%clk 0:00:05.9]} 46... Rg5
{[%clk 0:00:08.6]} 47. Bf6 {[%clk 0:00:05.1]} 47... Rg6 {[%clk 0:00:08.4]} 48.
Be5 {[%clk 0:00:04.6]} 48... Ng5 {[%clk 0:00:08.6]} 49. Bg3 {[%clk 0:00:04.9]}
49... Ne4 {[%clk 0:00:08]} 50. Rd3+ {[%clk 0:00:05.5]} 50... Ke6 {[%clk
0:00:08.3]} 51. Re3 {[%clk 0:00:05.8]} 51... Kf5 {[%clk 0:00:08.7]} 52. Rd3
{[%clk 0:00:06.4]} 52... Nxg3 {[%clk 0:00:08.7]} 53. Rxg3 {[%clk 0:00:07.1]}
53... Kf4 {[%clk 0:00:09.4]} 54. Rg1 {[%clk 0:00:07.7]} 54... g3 {[%clk
0:00:09.9]} 55. Rf1+ {[%clk 0:00:08.1]} 55... Ke3 {[%clk 0:00:10.5]} 56. Ka3
{[%clk 0:00:07.8]} 56... g2 {[%clk 0:00:10.5]} 57. Rc1 {[%clk 0:00:07.9]} 57...
Kd2 {[%clk 0:00:10.5]} 58. Rg1 {[%clk 0:00:07.1]} 58... Rg4 {[%clk 0:00:11]} 59.
Rxg2+ {[%clk 0:00:06.3]} 59... Rxg2 {[%clk 0:00:11]} 60. Kb4 {[%clk 0:00:07.2]}
60... Rg6 {[%clk 0:00:11.4]} 61. a4 {[%clk 0:00:06.7]} 61... bxa4 {[%clk
0:00:12.3]} 62. bxa4 {[%clk 0:00:06.9]} 62... Kd3 {[%clk 0:00:13.2]} 63. a5
{[%clk 0:00:07.1]} 63... Kd4 {[%clk 0:00:13.3]} 64. Kb3 {[%clk 0:00:07.7]} 64...
Kc5 {[%clk 0:00:13.3]} 65. Ka4 {[%clk 0:00:08.4]} 65... Kc4 {[%clk 0:00:13.4]}
0-1